[Event "January 9 Early 2024"]
[Site "https://www.chess.com"]
[Date "2024.01.11"]
[Round "2"]
[White "Hambleton, Aman"]
[Black "Santos Flores, Alberto"]
[Result "1-0"]
[Board "243"]
[TimeControl "180+1"]
[WhiteFideId "2606577"]
[BlackFideId "3601234"]
[WhiteElo "2774"]
[BlackElo "2506"]
[WhiteTeam "CAN"]
[BlackTeam "ECU"]
[WhiteClock "0:00:04"]
[BlackClock "0:00:04"]

1. d4 {[%clk 0:03:00]}  Nf6 {[%clk 0:02:59]} 2. Bf4 {[%clk 0:03:00]}  g6 {[%clk 0:02:58]} 3. e3 {[%clk 0:02:57]}  Bg7 {[%clk 0:02:58]} 4. h3 {[%clk 0:02:57]}  O-O {[%clk 0:02:57]} 5. c3 {[%clk 0:02:57]}  d6 {[%clk 0:02:57]} 6. Nf3 {[%clk 0:02:58]}  Nbd7 {[%clk 0:02:56]} 7. Bh2 {[%clk 0:02:56]}  b6 {[%clk 0:02:54]} 8. a4 {[%clk 0:02:56]}  a6 {[%clk 0:02:46]} 9. Bd3 {[%clk 0:02:18]}  Bb7 {[%clk 0:02:45]} 10. O-O {[%clk 0:02:18]}  Re8 {[%clk 0:02:44]} 11. Re1 {[%clk 0:02:17]}  e5 {[%clk 0:02:43]} 12. Be2 {[%clk 0:02:17]}  Qe7 {[%clk 0:02:35]} 13. Na3 {[%clk 0:02:10]}  Ne4 {[%clk 0:02:12]} 14. Bf1 {[%clk 0:02:01]}  Rad8 {[%clk 0:02:04]} 15. Nc4 {[%clk 0:01:57]}  Ng5 {[%clk 0:01:45]} 16. Nxg5 {[%clk 0:01:36]}  Qxg5 {[%clk 0:01:46]} 17. Qg4 {[%clk 0:00:57]}  Qe7 {[%clk 0:01:41]} 18. Rad1 {[%clk 0:00:57]}  h5 {[%clk 0:01:41]} 19. Qe2 {[%clk 0:00:58]}  Qg5 {[%clk 0:01:35]} 20. dxe5 {[%clk 0:00:45]}  Nxe5 {[%clk 0:01:27]} 21. f4 {[%clk 0:00:18]}  Nf3+ {[%clk 0:00:55]} 22. Qxf3 {[%clk 0:00:11]}  Bxf3 {[%clk 0:00:54]} 23. fxg5 {[%clk 0:00:11]}  Bxd1 {[%clk 0:00:54]} 24. Rxd1 {[%clk 0:00:12]}  a5 {[%clk 0:00:50]} 25. Bf4 {[%clk 0:00:07]}  Be5 {[%clk 0:00:41]} 26. Kf2 {[%clk 0:00:02]}  Bxf4 {[%clk 0:00:38]} 27. exf4 {[%clk 0:00:03]}  Re6 {[%clk 0:00:34]} 28. Be2 {[%clk 0:00:02]}  f6 {[%clk 0:00:27]} 29. gxf6 {[%clk 0:00:02]}  Rxf6 {[%clk 0:00:27]} 30. g3 {[%clk 0:00:02]}  g5 {[%clk 0:00:25]} 31. Bxh5 {[%clk 0:00:02]}  gxf4 {[%clk 0:00:25]} 32. Rd4 {[%clk 0:00:02]}  fxg3+ {[%clk 0:00:23]} 33. Kxg3 {[%clk 0:00:03]}  Rdf8 {[%clk 0:00:19]} 34. Ne3 {[%clk 0:00:02]}  Rf2 {[%clk 0:00:17]} 35. Ng4 {[%clk 0:00:01]}  Rxb2 {[%clk 0:00:17]} 36. Rc4 {[%clk 0:00:01]}  c5 {[%clk 0:00:16]} 37. Re4 {[%clk 0:00:01]}  Rc2 {[%clk 0:00:14]} 38. Re3 {[%clk 0:00:01]}  d5 {[%clk 0:00:13]} 39. Ne5 {[%clk 0:00:02]}  d4 {[%clk 0:00:11]} 40. cxd4 {[%clk 0:00:02]}  cxd4 {[%clk 0:00:11]} 41. Re4 {[%clk 0:00:03]}  Rc3+ {[%clk 0:00:11]} 42. Kh4 {[%clk 0:00:03]}  d3 {[%clk 0:00:10]} 43. Rd4 {[%clk 0:00:04]}  Rfc8 {[%clk 0:00:07]} 44. Bg4 {[%clk 0:00:03]}  R8c5 {[%clk 0:00:07]} 45. Nxd3 {[%clk 0:00:03]}  R5c4 {[%clk 0:00:04]} 46. Be6+ {[%clk 0:00:04]}  Kg7 {[%clk 0:00:04]} 47. Bxc4 {[%clk 0:00:04]} 1-0

[Event "January 9 Early 2024"]
[Site "https://www.chess.com"]
[Date "2024.01.11"]
[Round "2"]
[White "Dyulgerov, Volen"]
[Black "Wagner, Dennis"]
[Result "0-1"]
[Board "244"]
[TimeControl "180+1"]
[WhiteFideId "2918978"]
[BlackFideId "24650684"]
[WhiteElo "2393"]
[BlackElo "2750"]
[WhiteTeam "BUL"]
[BlackTeam "GER"]
[WhiteClock "0:00:01"]
[BlackClock "0:00:22"]

1. e4 {[%clk 0:03:00]}  c5 {[%clk 0:02:58]} 2. Nf3 {[%clk 0:03:01]}  d6 {[%clk 0:02:58]} 3. d4 {[%clk 0:03:01]}  cxd4 {[%clk 0:02:59]} 4. c3 {[%clk 0:03:02]}  Nf6 {[%clk 0:03:00]} 5. Bd3 {[%clk 0:03:02]}  dxc3 {[%clk 0:02:59]} 6. O-O {[%clk 0:03:02]}  g6 {[%clk 0:02:56]} 7. Re1 {[%clk 0:03:03]}  Bg7 {[%clk 0:02:56]} 8. Nxc3 {[%clk 0:02:57]}  O-O {[%clk 0:02:56]} 9. Bg5 {[%clk 0:02:53]}  Nc6 {[%clk 0:02:55]} 10. Rc1 {[%clk 0:02:49]}  Be6 {[%clk 0:02:55]} 11. Nd5 {[%clk 0:02:32]}  Nxd5 {[%clk 0:02:50]} 12. exd5 {[%clk 0:02:32]}  Bxd5 {[%clk 0:02:51]} 13. Ba6 {[%clk 0:01:42]}  Bxf3 {[%clk 0:02:15]} 14. Qxf3 {[%clk 0:01:36]}  bxa6 {[%clk 0:01:52]} 15. Rxc6 {[%clk 0:01:33]}  Re8 {[%clk 0:01:31]} 16. h4 {[%clk 0:00:52]}  Rb8 {[%clk 0:01:26]} 17. Qa3 {[%clk 0:00:36]}  Qd7 {[%clk 0:01:19]} 18. Rxa6 {[%clk 0:00:31]}  Bxb2 {[%clk 0:01:18]} 19. Qa4 {[%clk 0:00:23]}  Qxa4 {[%clk 0:01:14]} 20. Rxa4 {[%clk 0:00:24]}  Rb7 {[%clk 0:01:09]} 21. Rb1 {[%clk 0:00:22]}  Reb8 {[%clk 0:01:06]} 22. Be3 {[%clk 0:00:21]}  e6 {[%clk 0:00:45]} 23. Rxa7 {[%clk 0:00:15]}  Rxa7 {[%clk 0:00:44]} 24. Bxa7 {[%clk 0:00:16]}  Ra8 {[%clk 0:00:44]} 25. Rxb2 {[%clk 0:00:14]}  Rxa7 {[%clk 0:00:43]} 26. h5 {[%clk 0:00:13]}  gxh5 {[%clk 0:00:40]} 27. Kh2 {[%clk 0:00:13]}  Kg7 {[%clk 0:00:41]} 28. Kg3 {[%clk 0:00:13]}  Ra4 {[%clk 0:00:40]} 29. f4 {[%clk 0:00:13]}  Kg6 {[%clk 0:00:38]} 30. Kf3 {[%clk 0:00:06]}  Kf5 {[%clk 0:00:38]} 31. g3 {[%clk 0:00:05]}  Ra3+ {[%clk 0:00:38]} 32. Kf2 {[%clk 0:00:02]}  Kg4 {[%clk 0:00:33]} 33. Rb7 {[%clk 0:00:01]}  Rxa2+ {[%clk 0:00:33]} 34. Ke3 {[%clk 0:00:01]}  Ra3+ {[%clk 0:00:33]} 35. Ke4 {[%clk 0:00:01]}  f5+ {[%clk 0:00:32]} 36. Kd4 {[%clk 0:00:01]}  Kxg3 {[%clk 0:00:31]} 37. Rxh7 {[%clk 0:00:01]}  h4 {[%clk 0:00:31]} 38. Rh6 {[%clk 0:00:01]}  Ra4+ {[%clk 0:00:29]} 39. Ke3 {[%clk 0:00:01]}  Re4+ {[%clk 0:00:29]} 40. Kd2 {[%clk 0:00:01]}  h3 {[%clk 0:00:29]} 41. Rg6+ {[%clk 0:00:01]}  Kxf4 {[%clk 0:00:29]} 42. Rh6 {[%clk 0:00:01]}  Kg3 {[%clk 0:00:29]} 43. Rg6+ {[%clk 0:00:02]}  Kf2 {[%clk 0:00:24]} 44. Rh6 {[%clk 0:00:02]}  Kg2 {[%clk 0:00:24]} 45. Rg6+ {[%clk 0:00:02]}  Kh1 {[%clk 0:00:24]} 46. Kd3 {[%clk 0:00:01]}  h2 {[%clk 0:00:24]} 47. Kd2 {[%clk 0:00:02]}  d5 {[%clk 0:00:24]} 48. Kd3 {[%clk 0:00:02]}  f4 {[%clk 0:00:22]} 49. Kd2 {[%clk 0:00:01]}  Re3 {[%clk 0:00:22]} 50. Rg4 {[%clk 0:00:01]}  e5 {[%clk 0:00:22]} 51. Kd1 {[%clk 0:00:02]}  Rg3 {[%clk 0:00:22]} 52. Rh4 {[%clk 0:00:01]}  Kg2 {[%clk 0:00:22]} 0-1

[Event "January 9 Early 2024"]
[Site "https://www.chess.com"]
[Date "2024.01.11"]
[Round "2"]
[White "Andrews, Todd"]
[Black "Ratnesan, Ranesh"]
[Result "0-1"]
[Board "245"]
[TimeControl "180+1"]
[WhiteFideId "2012456"]
[BlackFideId "439339"]
[WhiteElo "2492"]
[BlackElo "2291"]
[WhiteTeam "USA"]
[BlackTeam "ENG"]
[WhiteClock "0:00:14"]
[BlackClock "0:00:07"]

1. d4 {[%clk 0:03:00]}  d5 {[%clk 0:02:56]} 2. c4 {[%clk 0:03:00]}  e6 {[%clk 0:02:51]} 3. Nc3 {[%clk 0:03:00]}  Nf6 {[%clk 0:02:50]} 4. cxd5 {[%clk 0:03:00]}  exd5 {[%clk 0:02:51]} 5. Bg5 {[%clk 0:03:00]}  c6 {[%clk 0:02:51]} 6. e3 {[%clk 0:02:59]}  Be7 {[%clk 0:02:52]} 7. Bd3 {[%clk 0:02:59]}  Nbd7 {[%clk 0:02:53]} 8. Nge2 {[%clk 0:02:59]}  h6 {[%clk 0:02:53]} 9. Bh4 {[%clk 0:02:58]}  Nh5 {[%clk 0:02:54]} 10. Bxe7 {[%clk 0:02:57]}  Qxe7 {[%clk 0:02:54]} 11. O-O {[%clk 0:02:56]}  O-O {[%clk 0:02:54]} 12. Rb1 {[%clk 0:02:56]}  a5 {[%clk 0:02:53]} 13. a3 {[%clk 0:02:55]}  f5 {[%clk 0:02:47]} 14. b4 {[%clk 0:02:55]}  axb4 {[%clk 0:02:47]} 15. axb4 {[%clk 0:02:56]}  b5 {[%clk 0:02:48]} 16. Qc2 {[%clk 0:02:51]}  Ndf6 {[%clk 0:02:43]} 17. Bxf5 {[%clk 0:02:43]}  Nd7 {[%clk 0:02:03]} 18. Bg6 {[%clk 0:02:34]}  Nhf6 {[%clk 0:02:00]} 19. Ng3 {[%clk 0:02:30]}  Nb6 {[%clk 0:01:53]} 20. Ra1 {[%clk 0:02:18]}  Bd7 {[%clk 0:01:49]} 21. Nce2 {[%clk 0:01:54]}  Nc4 {[%clk 0:01:43]} 22. Nf4 {[%clk 0:01:49]}  Qxb4 {[%clk 0:01:37]} 23. Ngh5 {[%clk 0:01:38]}  Nxh5 {[%clk 0:01:34]} 24. Bh7+ {[%clk 0:01:34]}  Kf7 {[%clk 0:01:23]} 25. Qg6+ {[%clk 0:01:32]}  Ke7 {[%clk 0:01:23]} 26. Qxh5 {[%clk 0:01:27]}  Rxa1 {[%clk 0:01:13]} 27. Rxa1 {[%clk 0:01:26]}  Rf6 {[%clk 0:01:03]} 28. Ng6+ {[%clk 0:01:11]}  Kd6 {[%clk 0:01:02]} 29. Qh4 {[%clk 0:01:04]}  Kc7 {[%clk 0:00:53]} 30. Qg3+ {[%clk 0:00:52]}  Kb7 {[%clk 0:00:53]} 31. h4 {[%clk 0:00:52]}  Bf5 {[%clk 0:00:44]} 32. h5 {[%clk 0:00:42]}  Qd6 {[%clk 0:00:44]} 33. Qh4 {[%clk 0:00:31]}  b4 {[%clk 0:00:27]} 34. Bg8 {[%clk 0:00:28]}  b3 {[%clk 0:00:27]} 35. f3 {[%clk 0:00:25]}  b2 {[%clk 0:00:27]} 36. Rf1 {[%clk 0:00:22]}  Nxe3 {[%clk 0:00:26]} 37. Re1 {[%clk 0:00:16]}  b1=Q {[%clk 0:00:20]} 38. Rxb1+ {[%clk 0:00:16]}  Bxb1 {[%clk 0:00:21]} 39. Qe1 {[%clk 0:00:16]}  Bxg6 {[%clk 0:00:13]} 40. hxg6 {[%clk 0:00:16]}  Nc4 {[%clk 0:00:12]} 41. Bf7 {[%clk 0:00:16]}  Nb6 {[%clk 0:00:10]} 42. Qa5 {[%clk 0:00:15]}  Qg3 {[%clk 0:00:06]} 43. Qd2 {[%clk 0:00:15]}  Rxf3 {[%clk 0:00:04]} 44. Be8 {[%clk 0:00:14]}  Rd3 {[%clk 0:00:04]} 45. Qc2 {[%clk 0:00:14]}  Rc3 {[%clk 0:00:04]} 46. Qb2 {[%clk 0:00:14]}  Rb3 {[%clk 0:00:04]} 47. Qc2 {[%clk 0:00:14]}  Qc3 {[%clk 0:00:04]} 48. Qe2 {[%clk 0:00:14]}  Rb1+ {[%clk 0:00:04]} 49. Kh2 {[%clk 0:00:14]}  Qxd4 {[%clk 0:00:05]} 50. Qe7+ {[%clk 0:00:14]}  Ka6 {[%clk 0:00:06]} 51. Qd8 {[%clk 0:00:13]}  Qf4+ {[%clk 0:00:06]} 52. g3 {[%clk 0:00:13]}  Qf2+ {[%clk 0:00:06]} 53. Kh3 {[%clk 0:00:13]}  Rh1+ {[%clk 0:00:07]} 54. Kg4 {[%clk 0:00:13]}  Qd4+ {[%clk 0:00:07]} 55. Kf5 {[%clk 0:00:14]}  Qe4# {[%clk 0:00:07]} 0-1

[Event "January 9 Early 2024"]
[Site "https://www.chess.com"]
[Date "2024.01.11"]
[Round "2"]
[White "Khamdamova, Afruza"]
[Black "Ioannidis, Evgenios"]
[Result "0-1"]
[Board "249"]
[TimeControl "180+1"]
[WhiteFideId "14210444"]
[BlackFideId "4229274"]
[WhiteElo "2538"]
[BlackElo "2798"]
[WhiteTeam "UZB"]
[BlackTeam "GRE"]
[WhiteClock "0:00:01"]
[BlackClock "0:00:03"]

1. e4 {[%clk 0:02:59]}  e5 {[%clk 0:03:00]} 2. Nf3 {[%clk 0:02:58]}  Nc6 {[%clk 0:03:01]} 3. Bb5 {[%clk 0:02:57]}  a6 {[%clk 0:03:01]} 4. Ba4 {[%clk 0:02:57]}  Nf6 {[%clk 0:03:02]} 5. O-O {[%clk 0:02:56]}  Nxe4 {[%clk 0:03:02]} 6. d4 {[%clk 0:02:55]}  Be7 {[%clk 0:03:03]} 7. d5 {[%clk 0:02:51]}  Nc5 {[%clk 0:03:03]} 8. Bxc6 {[%clk 0:02:38]}  dxc6 {[%clk 0:02:56]} 9. dxc6 {[%clk 0:02:38]}  Qxd1 {[%clk 0:02:49]} 10. Rxd1 {[%clk 0:02:37]}  Bd6 {[%clk 0:02:32]} 11. Be3 {[%clk 0:02:32]}  f6 {[%clk 0:02:24]} 12. Rd5 {[%clk 0:02:07]}  b6 {[%clk 0:02:20]} 13. Nc3 {[%clk 0:02:02]}  Be6 {[%clk 0:02:18]} 14. Rd2 {[%clk 0:02:01]}  Kf7 {[%clk 0:02:13]} 15. Rad1 {[%clk 0:01:58]}  Bg4 {[%clk 0:01:35]} 16. Nd5 {[%clk 0:01:44]}  Ne4 {[%clk 0:01:28]} 17. Rd3 {[%clk 0:01:32]}  Rhd8 {[%clk 0:01:01]} 18. h3 {[%clk 0:01:11]}  Be6 {[%clk 0:00:59]} 19. c4 {[%clk 0:01:00]}  Rac8 {[%clk 0:00:55]} 20. Nd2 {[%clk 0:00:48]}  Nc5 {[%clk 0:00:53]} 21. Bxc5 {[%clk 0:00:48]}  Bxc5 {[%clk 0:00:53]} 22. Ne4 {[%clk 0:00:48]}  Bd4 {[%clk 0:00:51]} 23. Nec3 {[%clk 0:00:32]}  Rd6 {[%clk 0:00:51]} 24. b3 {[%clk 0:00:20]}  b5 {[%clk 0:00:37]} 25. Ne2 {[%clk 0:00:09]}  bxc4 {[%clk 0:00:33]} 26. bxc4 {[%clk 0:00:09]}  Bc5 {[%clk 0:00:24]} 27. Ndc3 {[%clk 0:00:07]}  Bxc4 {[%clk 0:00:20]} 28. Rxd6 {[%clk 0:00:06]}  cxd6 {[%clk 0:00:21]} 29. Ne4 {[%clk 0:00:05]}  Bxe2 {[%clk 0:00:21]} 30. Rxd6 {[%clk 0:00:04]}  Bb6 {[%clk 0:00:10]} 31. Rd7+ {[%clk 0:00:04]}  Kg6 {[%clk 0:00:10]} 32. Nd6 {[%clk 0:00:03]}  Rxc6 {[%clk 0:00:10]} 33. Ne8 {[%clk 0:00:04]}  Rc1+ {[%clk 0:00:07]} 34. Kh2 {[%clk 0:00:04]}  Bxf2 {[%clk 0:00:08]} 35. Rxg7+ {[%clk 0:00:04]}  Kh6 {[%clk 0:00:09]} 36. Rg8 {[%clk 0:00:03]}  Be3 {[%clk 0:00:08]} 37. h4 {[%clk 0:00:02]}  Bf4+ {[%clk 0:00:08]} 38. g3 {[%clk 0:00:02]}  Bc4 {[%clk 0:00:06]} 39. Rf8 {[%clk 0:00:01]}  Rc2+ {[%clk 0:00:04]} 40. Kh3 {[%clk 0:00:02]}  Be6+ {[%clk 0:00:02]} 41. g4 {[%clk 0:00:01]}  Rh2# {[%clk 0:00:03]} 0-1

[Event "January 9 Early 2024"]
[Site "https://www.chess.com"]
[Date "2024.01.11"]
[Round "2"]
[White "Yagupov, Igor"]
[Black "Navara, David"]
[Result "0-1"]
[Board "251"]
[TimeControl "180+1"]
[WhiteFideId "4113632"]
[BlackFideId "309095"]
[WhiteElo "2640"]
[BlackElo "2992"]
[WhiteTeam "RUS"]
[BlackTeam "CZE"]
[WhiteClock "0:00:09"]
[BlackClock "0:00:05"]

1. e4 {[%clk 0:03:00]}  c5 {[%clk 0:03:00]} 2. Nf3 {[%clk 0:02:59]}  d6 {[%clk 0:03:00]} 3. d4 {[%clk 0:03:00]}  cxd4 {[%clk 0:03:01]} 4. Nxd4 {[%clk 0:03:00]}  Nf6 {[%clk 0:03:02]} 5. Nc3 {[%clk 0:03:01]}  a6 {[%clk 0:03:02]} 6. f3 {[%clk 0:03:01]}  e5 {[%clk 0:03:02]} 7. Nb3 {[%clk 0:03:02]}  Be6 {[%clk 0:03:01]} 8. Be3 {[%clk 0:03:03]}  Be7 {[%clk 0:03:01]} 9. Qd2 {[%clk 0:03:03]}  O-O {[%clk 0:03:02]} 10. O-O-O {[%clk 0:03:03]}  Nbd7 {[%clk 0:03:02]} 11. g4 {[%clk 0:03:02]}  b5 {[%clk 0:03:02]} 12. g5 {[%clk 0:02:58]}  Nh5 {[%clk 0:03:03]} 13. Kb1 {[%clk 0:02:57]}  b4 {[%clk 0:02:44]} 14. Nd5 {[%clk 0:02:54]}  Bxd5 {[%clk 0:02:45]} 15. exd5 {[%clk 0:02:54]}  a5 {[%clk 0:02:43]} 16. Bb5 {[%clk 0:02:47]}  f5 {[%clk 0:02:38]} 17. h4 {[%clk 0:02:31]}  Qc7 {[%clk 0:02:06]} 18. Bc6 {[%clk 0:02:08]}  a4 {[%clk 0:02:05]} 19. Nc1 {[%clk 0:02:06]}  Rab8 {[%clk 0:02:04]} 20. Nd3 {[%clk 0:01:59]}  Ng3 {[%clk 0:01:22]} 21. Rhe1 {[%clk 0:01:42]}  b3 {[%clk 0:01:02]} 22. cxb3 {[%clk 0:01:41]}  axb3 {[%clk 0:01:02]} 23. a3 {[%clk 0:01:39]}  Nb6 {[%clk 0:01:00]} 24. Rc1 {[%clk 0:01:36]}  f4 {[%clk 0:00:54]} 25. Bf2 {[%clk 0:01:28]}  Nf5 {[%clk 0:00:50]} 26. Re4 {[%clk 0:01:23]}  Rfc8 {[%clk 0:00:43]} 27. Qa5 {[%clk 0:01:20]}  Bd8 {[%clk 0:00:36]} 28. Rb4 {[%clk 0:01:07]}  Ne3 {[%clk 0:00:34]} 29. Bxe3 {[%clk 0:00:57]}  fxe3 {[%clk 0:00:35]} 30. Qa6 {[%clk 0:00:52]}  Qf7 {[%clk 0:00:32]} 31. Rxb3 {[%clk 0:00:48]}  Qxf3 {[%clk 0:00:27]} 32. Bd7 {[%clk 0:00:45]}  Rxc1+ {[%clk 0:00:25]} 33. Nxc1 {[%clk 0:00:44]}  Nxd7 {[%clk 0:00:17]} 34. Rxb8 {[%clk 0:00:43]}  Qf5+ {[%clk 0:00:17]} 35. Ka2 {[%clk 0:00:39]}  Nxb8 {[%clk 0:00:17]} 36. Qb5 {[%clk 0:00:31]}  Nd7 {[%clk 0:00:17]} 37. a4 {[%clk 0:00:27]}  Kf7 {[%clk 0:00:14]} 38. a5 {[%clk 0:00:27]}  Ke7 {[%clk 0:00:14]} 39. a6 {[%clk 0:00:27]}  Bb6 {[%clk 0:00:14]} 40. Ne2 {[%clk 0:00:24]}  Qe4 {[%clk 0:00:06]} 41. Nc3 {[%clk 0:00:24]}  Qd4 {[%clk 0:00:07]} 42. Qc6 {[%clk 0:00:18]}  Qxh4 {[%clk 0:00:04]} 43. Qb7 {[%clk 0:00:13]}  Qc4+ {[%clk 0:00:05]} 44. Kb1 {[%clk 0:00:09]}  Qd3+ {[%clk 0:00:04]} 45. Ka2 {[%clk 0:00:09]}  Qc4+ {[%clk 0:00:05]} 0-1

[Event "January 9 Early 2024"]
[Site "https://www.chess.com"]
[Date "2024.01.11"]
[Round "2"]
[White "Pandey Srishti"]
[Black "Guevara Sanchez, Erick Marvin"]
[Result "1/2-1/2"]
[Board "253"]
[TimeControl "180+1"]
[WhiteFideId "35093290"]
[BlackFideId "6700136"]
[WhiteElo "2472"]
[BlackElo "2215"]
[WhiteTeam "IND"]
[BlackTeam "ESA"]
[WhiteClock "0:00:14"]
[BlackClock "0:00:07"]

1. e4 {[%clk 0:03:00]}  c5 {[%clk 0:03:00]} 2. Nf3 {[%clk 0:02:59]}  d6 {[%clk 0:03:00]} 3. d4 {[%clk 0:02:53]}  cxd4 {[%clk 0:03:01]} 4. Nxd4 {[%clk 0:02:54]}  Nf6 {[%clk 0:03:00]} 5. Nc3 {[%clk 0:02:53]}  a6 {[%clk 0:03:00]} 6. f3 {[%clk 0:02:53]}  e5 {[%clk 0:03:00]} 7. Nb3 {[%clk 0:02:52]}  Be6 {[%clk 0:03:01]} 8. Be3 {[%clk 0:02:52]}  Be7 {[%clk 0:03:01]} 9. Qd2 {[%clk 0:02:52]}  Nbd7 {[%clk 0:03:01]} 10. Nd5 {[%clk 0:02:50]}  Nxd5 {[%clk 0:03:00]} 11. exd5 {[%clk 0:02:51]}  Bf5 {[%clk 0:03:00]} 12. Be2 {[%clk 0:02:49]}  O-O {[%clk 0:02:55]} 13. O-O {[%clk 0:02:36]}  Rc8 {[%clk 0:02:53]} 14. c4 {[%clk 0:02:32]}  Nf6 {[%clk 0:02:49]} 15. Na5 {[%clk 0:02:31]}  Qc7 {[%clk 0:02:44]} 16. b4 {[%clk 0:02:27]}  Bd7 {[%clk 0:02:08]} 17. Rac1 {[%clk 0:02:05]}  b6 {[%clk 0:02:06]} 18. Nb3 {[%clk 0:02:04]}  Qb7 {[%clk 0:02:04]} 19. Qb2 {[%clk 0:01:40]}  b5 {[%clk 0:02:00]} 20. Na5 {[%clk 0:01:36]}  Qa8 {[%clk 0:01:58]} 21. Rfd1 {[%clk 0:01:35]}  bxc4 {[%clk 0:01:57]} 22. Bxc4 {[%clk 0:01:36]}  Bd8 {[%clk 0:01:46]} 23. Qe2 {[%clk 0:01:30]}  Bxa5 {[%clk 0:01:23]} 24. bxa5 {[%clk 0:01:31]}  Ba4 {[%clk 0:01:15]} 25. Bxa6 {[%clk 0:01:02]}  Bxd1 {[%clk 0:01:09]} 26. Rxd1 {[%clk 0:01:03]}  Nxd5 {[%clk 0:01:01]} 27. Bxc8 {[%clk 0:01:00]}  Rxc8 {[%clk 0:01:01]} 28. Bb6 {[%clk 0:00:54]}  Nc3 {[%clk 0:01:00]} 29. Qd2 {[%clk 0:00:49]}  Nxd1 {[%clk 0:00:59]} 30. Qxd1 {[%clk 0:00:50]}  d5 {[%clk 0:00:58]} 31. h3 {[%clk 0:00:48]}  d4 {[%clk 0:00:57]} 32. Qe1 {[%clk 0:00:46]}  f6 {[%clk 0:00:55]} 33. Qb4 {[%clk 0:00:40]}  Qd5 {[%clk 0:00:49]} 34. a6 {[%clk 0:00:30]}  Ra8 {[%clk 0:00:47]} 35. a7 {[%clk 0:00:28]}  h6 {[%clk 0:00:39]} 36. Bc7 {[%clk 0:00:26]}  Kh7 {[%clk 0:00:33]} 37. Bb8 {[%clk 0:00:21]}  d3 {[%clk 0:00:32]} 38. Qd2 {[%clk 0:00:19]}  Qd4+ {[%clk 0:00:29]} 39. Kf1 {[%clk 0:00:19]}  f5 {[%clk 0:00:29]} 40. h4 {[%clk 0:00:16]}  e4 {[%clk 0:00:28]} 41. fxe4 {[%clk 0:00:15]}  fxe4 {[%clk 0:00:29]} 42. Qf4 {[%clk 0:00:16]}  d2 {[%clk 0:00:12]} 43. Qf5+ {[%clk 0:00:14]}  g6 {[%clk 0:00:09]} 44. Qf7+ {[%clk 0:00:13]}  Qg7 {[%clk 0:00:10]} 45. Qd5 {[%clk 0:00:13]}  e3 {[%clk 0:00:09]} 46. Ke2 {[%clk 0:00:13]}  Qa1 {[%clk 0:00:08]} 47. Qd7+ {[%clk 0:00:13]}  Qg7 {[%clk 0:00:07]} 48. Qd5 {[%clk 0:00:13]}  Qa1 {[%clk 0:00:06]} 49. Qd7+ {[%clk 0:00:13]}  Qg7 {[%clk 0:00:07]} 50. Qd5 {[%clk 0:00:14]} 1/2-1/2

[Event "January 9 Early 2024"]
[Site "https://www.chess.com"]
[Date "2024.01.11"]
[Round "2"]
[White "Koshulyan, Egor A."]
[Black "So, Wesley"]
[Result "0-1"]
[Board "255"]
[TimeControl "180+1"]
[WhiteFideId "24237000"]
[BlackFideId "5202213"]
[WhiteElo "2669"]
[BlackElo "3055"]
[WhiteTeam "RUS"]
[BlackTeam "USA"]
[WhiteClock "0:00:02"]
[BlackClock "0:00:04"]

1. e4 {[%clk 0:03:00]}  c5 {[%clk 0:02:58]} 2. Nf3 {[%clk 0:03:00]}  d6 {[%clk 0:02:57]} 3. d4 {[%clk 0:03:00]}  cxd4 {[%clk 0:02:58]} 4. Qxd4 {[%clk 0:03:01]}  Nf6 {[%clk 0:02:57]} 5. Nc3 {[%clk 0:02:56]}  Nc6 {[%clk 0:02:57]} 6. Bb5 {[%clk 0:02:56]}  Bd7 {[%clk 0:02:57]} 7. Bxc6 {[%clk 0:02:56]}  Bxc6 {[%clk 0:02:57]} 8. Bg5 {[%clk 0:02:56]}  e6 {[%clk 0:02:58]} 9. O-O-O {[%clk 0:02:54]}  Be7 {[%clk 0:02:53]} 10. Qd3 {[%clk 0:02:53]}  Qa5 {[%clk 0:02:50]} 11. Kb1 {[%clk 0:02:52]}  O-O {[%clk 0:02:48]} 12. h4 {[%clk 0:02:52]}  h6 {[%clk 0:02:40]} 13. Bc1 {[%clk 0:02:51]}  Qa6 {[%clk 0:02:29]} 14. Qxa6 {[%clk 0:02:17]}  bxa6 {[%clk 0:02:30]} 15. e5 {[%clk 0:02:18]}  dxe5 {[%clk 0:02:01]} 16. Nxe5 {[%clk 0:02:19]}  Bxg2 {[%clk 0:01:49]} 17. Rhg1 {[%clk 0:02:18]}  Bh3 {[%clk 0:01:49]} 18. Bxh6 {[%clk 0:02:16]}  Nh5 {[%clk 0:01:49]} 19. Ne4 {[%clk 0:01:23]}  Kh7 {[%clk 0:01:29]} 20. Be3 {[%clk 0:01:18]}  f6 {[%clk 0:01:26]} 21. Nf3 {[%clk 0:01:15]}  Bf5 {[%clk 0:01:21]} 22. Ng3 {[%clk 0:01:03]}  Bg4 {[%clk 0:01:20]} 23. Nxh5 {[%clk 0:01:00]}  Bxh5 {[%clk 0:01:21]} 24. Rg3 {[%clk 0:00:59]}  Rfd8 {[%clk 0:01:16]} 25. Rdg1 {[%clk 0:00:57]}  g6 {[%clk 0:01:16]} 26. Nd4 {[%clk 0:00:56]}  Bd6 {[%clk 0:01:06]} 27. Nxe6 {[%clk 0:00:34]}  Bxg3 {[%clk 0:01:04]} 28. Nxd8 {[%clk 0:00:34]}  Bxh4 {[%clk 0:00:53]} 29. Nc6 {[%clk 0:00:34]}  f5 {[%clk 0:00:46]} 30. f4 {[%clk 0:00:12]}  Rc8 {[%clk 0:00:42]} 31. Ne5 {[%clk 0:00:09]}  Rc7 {[%clk 0:00:42]} 32. c4 {[%clk 0:00:06]}  Bf6 {[%clk 0:00:42]} 33. b3 {[%clk 0:00:06]}  a5 {[%clk 0:00:37]} 34. Bd4 {[%clk 0:00:06]}  a4 {[%clk 0:00:34]} 35. Kb2 {[%clk 0:00:07]}  a5 {[%clk 0:00:31]} 36. Re1 {[%clk 0:00:06]}  Bh4 {[%clk 0:00:19]} 37. Rg1 {[%clk 0:00:04]}  Bf6 {[%clk 0:00:19]} 38. Re1 {[%clk 0:00:03]}  Bh4 {[%clk 0:00:17]} 39. Rg1 {[%clk 0:00:03]}  Kh6 {[%clk 0:00:17]} 40. Kc3 {[%clk 0:00:03]}  Bf6 {[%clk 0:00:16]} 41. c5 {[%clk 0:00:03]}  Bxe5 {[%clk 0:00:13]} 42. Bxe5 {[%clk 0:00:04]}  Rxc5+ {[%clk 0:00:13]} 43. Kb2 {[%clk 0:00:03]}  Bf3 {[%clk 0:00:11]} 44. Bf6 {[%clk 0:00:03]}  Rd5 {[%clk 0:00:09]} 45. Rc1 {[%clk 0:00:03]}  Be4 {[%clk 0:00:08]} 46. bxa4 {[%clk 0:00:02]}  Rd2+ {[%clk 0:00:08]} 47. Ka3 {[%clk 0:00:02]}  Bd5 {[%clk 0:00:06]} 48. Bb2 {[%clk 0:00:02]}  Kh5 {[%clk 0:00:05]} 49. Rf1 {[%clk 0:00:02]}  Rd3+ {[%clk 0:00:04]} 0-1